bitfinex-derivatives/quotes_BTCF0:USTF0_20241208
["timestamp","ask_amount","ask_price","bid_price","bid_amount"]
[1733687928045,0.19762824,100140.0,100120.0,0.1098838]
[1733687928242,0.19762824,100140.0,100130.0,0.00988083]
[1733687928447,0.07812,100140.0,100130.0,0.00992083]
[1733687928946,0.07812,100140.0,100130.0,0.10979598]
[1733687930143,0.43892,100140.0,100130.0,0.10979598]
[1733687931143,0.43892,100140.0,100130.0,0.11079598]
[1733687931940,0.43892,100140.0,100130.0,0.01092083]
[1733687933348,0.85842824,100140.0,100130.0,0.01092083]
[1733687935343,0.044921,100130.0,100120.0,0.01]
[1733687935546,0.52522924,100130.0,100120.0,0.00997993]
[1733687935749,0.82530924,100130.0,100120.0,0.00997993]
[1733687936042,0.04493,100110.0,100100.0,0.03009303]
[1733687936240,0.0302,100120.0,100100.0,0.3608]
[1733687936449,8e-05,100110.0,100100.0,0.405734]
[1733687936646,8e-05,100110.0,100100.0,0.50571169]
[1733687938843,0.07691,100110.0,100100.0,0.09997769]
[1733687939640,0.1188358,100150.0,100120.0,0.405724]
[1733687939837,0.044912,100150.0,100140.0,0.766516]
[1733687940035,0.04501059,100160.0,100150.0,0.044912]
[1733687940242,0.04501059,100160.0,100150.0,0.405712]
[1733687940243,0.16386058,100160.0,100150.0,0.405712]
[1733687940451,0.16386058,100160.0,100150.0,0.36084]
[1733687940850,0.16386058,100160.0,100150.0,0.4606952]
[1733687941343,0.16486058,100160.0,100150.0,0.4616952]
[1733687941645,0.16486058,100160.0,100150.0,0.4666952]
[1733687942947,0.16486058,100160.0,100150.0,0.36684]
[1733687943646,0.16486058,100160.0,100150.0,0.46668523]
[1733687944250,0.16486058,100160.0,100150.0,0.36684]
[1733687945241,5.8e-07,100160.0,100150.0,0.46668523]
[1733687945444,5.8e-07,100160.0,100150.0,0.51159723]
[1733687946756,0.01,100170.0,100150.0,0.51059723]
[1733687946948,0.02,100170.0,100160.0,0.405707]
[1733687947149,0.01,100170.0,100160.0,0.410747]
[1733687947754,0.054903,100170.0,100160.0,0.51058227]
[1733687948954,0.01,100180.0,100160.0,0.51058227]
[1733687949143,0.1,100200.0,100190.0,0.405694]
[1733687949343,0.03006925,100250.0,100200.0,0.044889]
[1733687949542,0.06493625,100250.0,100240.0,0.3608]
[1733687949747,0.36493625,100250.0,100240.0,0.36584]
[1733687950152,0.36493625,100250.0,100240.0,0.36596823]
[1733687950153,0.07682881,100250.0,100240.0,0.36596823]
[1733687950351,0.06505252,100250.0,100240.0,0.36596823]
[1733687950552,0.07004005,100250.0,100240.0,0.36596823]
[1733687950754,0.05504005,100250.0,100240.0,0.36596823]
[1733687950956,0.35504005,100250.0,100240.0,0.00516823]
[1733687951157,0.05110415,100250.0,100240.0,0.00516823]
[1733687951355,0.05110415,100250.0,100240.0,0.46572382]
[1733687951551,0.05110415,100250.0,100240.0,0.36596823]
[1733687951755,0.05110415,100250.0,100240.0,0.36696823]
[1733687951952,0.35110415,100250.0,100240.0,0.00616823]
[1733687952151,0.35110415,100250.0,100230.0,0.3608]
[1733687952152,0.044872,100240.0,100230.0,0.3608]
[1733687952557,0.044952,100240.0,100230.0,0.3608]
[1733687953159,0.04608535,100240.0,100230.0,0.36089741]
[1733687953764,0.34608535,100240.0,100230.0,0.36089741]
[1733687954058,0.04754215,100240.0,100230.0,0.46066296]
[1733687955347,0.04754215,100240.0,100230.0,0.36089741]
[1733687955551,0.04754215,100240.0,100230.0,0.46066296]
[1733687956550,0.04754215,100240.0,100230.0,0.36089741]
[1733687956751,0.25887916,100240.0,100230.0,0.36089741]
[1733687957055,0.044876,100230.0,100220.0,0.01]
[1733687957361,0.044881,100220.0,100210.0,0.3608]
[1733687957752,0.07756742,100220.0,100210.0,0.3608]
[1733687957953,0.07902422,100220.0,100210.0,0.3608]
[1733687958160,0.07902422,100220.0,100210.0,0.36088869]
[1733687958552,0.07902422,100220.0,100210.0,0.36188869]
[1733687959051,0.43982422,100220.0,100210.0,0.00108869]
[1733687959255,0.73982422,100220.0,100210.0,0.00108869]
[1733687959459,0.96978816,100220.0,100210.0,8.869e-05]
[1733687961451,0.75982422,100220.0,100210.0,8.869e-05]
[1733687961657,1.09522422,100220.0,100210.0,8.869e-05]
[1733687962257,1.09522422,100220.0,100210.0,0.00108869]
[1733687962258,1.10422422,100220.0,100210.0,0.00108869]
[1733687962464,0.044885,100210.0,100200.0,0.01]
[1733687962664,0.04489,100200.0,100190.0,0.3708]
[1733687962865,0.07529,100200.0,100190.0,0.3608]
[1733687963058,0.0768268,100200.0,100190.0,0.46058546]
[1733687963363,0.0768268,100200.0,100190.0,0.36089338]
[1733687963562,0.08070684,100200.0,100190.0,0.36089338]
[1733687963769,0.44150684,100200.0,100190.0,9.338e-05]
[1733687963958,0.44250684,100200.0,100190.0,9.338e-05]
[1733687964960,0.08170684,100200.0,100190.0,9.338e-05]
[1733687967666,0.44250684,100200.0,100190.0,9.338e-05]
[1733687967967,0.08170684,100200.0,100190.0,9.338e-05]
[1733687968167,0.08308066,100200.0,100190.0,9.338e-05]
[1733687969061,0.09308066,100200.0,100190.0,9.338e-05]
[1733687969468,0.09308066,100200.0,100190.0,0.36089338]
[1733687969658,0.05268066,100200.0,100190.0,0.50559275]
[1733687969860,0.05268066,100200.0,100190.0,0.46069875]
[1733687971967,0.05168066,100200.0,100190.0,0.46269875]
[1733687972974,0.05368066,100200.0,100190.0,0.46069875]
[1733687973770,0.05505448,100200.0,100190.0,0.46069875]
[1733687974570,0.05305448,100200.0,100190.0,0.56959275]
[1733687974771,0.05305448,100200.0,100190.0,0.57159275]
[1733687975170,0.05305448,100200.0,100190.0,0.56959275]
[1733687975471,0.05505448,100200.0,100190.0,0.56959275]
[1733687975970,0.05305448,100200.0,100190.0,0.57159275]
[1733687976366,0.05305448,100200.0,100190.0,0.74846388]
[1733687976566,0.05305448,100200.0,100190.0,0.57159275]
[1733687977266,0.05305448,100200.0,100190.0,0.74846388]
[1733687977966,0.05305448,100200.0,100190.0,0.70356988]
[1733687978376,0.05305448,100200.0,100190.0,0.67086988]
[1733687978565,0.05305448,100200.0,100190.0,0.46269875]
[1733687978874,0.21199981,100200.0,100190.0,0.00209338]
[1733687979064,0.24219981,100200.0,100190.0,0.00209338]
[1733687979265,0.42018423,100200.0,100190.0,0.00209338]
[1733687979469,0.41218423,100200.0,100190.0,0.09989875]
[1733687979671,0.41355805,100200.0,100190.0,0.46069875]
[1733687979871,0.41355805,100200.0,100190.0,0.09989875]
[1733687981264,0.41355805,100200.0,100190.0,9.338e-05]
[1733687983069,0.26461272,100200.0,100190.0,9.338e-05]
[1733687983275,0.27461272,100200.0,100190.0,9.338e-05]
[1733687983971,0.63541272,100200.0,100190.0,9.338e-05]
[1733687984580,0.27461272,100200.0,100190.0,9.338e-05]
[1733687984768,0.30591272,100200.0,100190.0,9.338e-05]
[1733687985169,0.1199268,100200.0,100190.0,9.338e-05]
[1733687985377,1.18039274,100200.0,100190.0,3.8e-07]
[1733687985678,1.24002485,100200.0,100190.0,3.8e-07]
[1733687985875,1.23926285,100200.0,100190.0,3.8e-07]
[1733687986074,0.99930406,100200.0,100190.0,3.8e-07]
[1733687986580,1.23926285,100200.0,100190.0,3.8e-07]
[1733687987677,0.99930406,100200.0,100190.0,3.8e-07]
[1733687988075,0.044894,100190.0,100180.0,3.8e-07]
[1733687988284,0.53576932,100190.0,100180.0,3.8e-07]
[1733687988472,0.83584932,100190.0,100180.0,3.8e-07]
[1733687988774,1.07580811,100190.0,100180.0,3.8e-07]
[1733687988982,1.28646685,100190.0,100180.0,3.8e-07]
[1733687989181,1.28659623,100190.0,100180.0,9.7e-07]
[1733687989773,1.04663744,100190.0,100180.0,9.7e-07]
[1733687990480,1.04663744,100190.0,100180.0,9.3e-07]
[1733687990678,0.8374355,100190.0,100180.0,9.3e-07]
[1733687990865,1.43819429,100190.0,100180.0,9.3e-07]
[1733687991071,1.64858242,100190.0,100180.0,9.3e-07]
[1733687991384,1.43956832,100190.0,100180.0,9.3e-07]
[1733687992081,1.70952196,100190.0,100180.0,9.3e-07]
[1733687992267,1.43956832,100190.0,100180.0,9.3e-07]
[1733687992783,0.044903,100170.0,100160.0,0.01]
[1733687992971,0.044907,100160.0,100150.0,0.3608]
[1733687993169,0.107507,100160.0,100150.0,0.3608]
[1733687993475,0.107587,100160.0,100150.0,0.3608]
[1733687994070,0.11979315,100160.0,100150.0,0.3608]
[1733687994479,0.12779315,100160.0,100150.0,0.3618]
[1733687995674,0.13779315,100160.0,100150.0,0.3618]
[1733687996283,0.49859315,100160.0,100150.0,0.001]
[1733687997680,0.51320591,100160.0,100150.0,0.001]
[1733687997880,0.51320591,100160.0,100150.0,0.46164523]
[1733687997881,0.06519315,100160.0,100150.0,0.46164523]
[1733688000375,0.06519315,100160.0,100150.0,0.50655723]
[1733688000580,0.03028615,100160.0,100150.0,0.50655723]
[1733688001076,0.07519315,100160.0,100150.0,0.50655723]
[1733688001480,0.07519315,100160.0,100150.0,0.80655723]
[1733688002568,0.03028615,100160.0,100150.0,0.80655723]
[1733688002774,0.07519315,100160.0,100150.0,0.80655723]
[1733688003569,0.03028615,100160.0,100150.0,0.80655723]
[1733688003770,0.03028615,100160.0,100150.0,0.53895723]
[1733688003973,0.054905,100170.0,100160.0,0.044907]
[1733688004274,0.01,100180.0,100160.0,0.705707]
[1733688004474,0.054899,100180.0,100170.0,0.468903]
[1733688004672,0.044899,100180.0,100170.0,0.468903]
[1733688005081,0.04627303,100180.0,100170.0,0.56873827]
[1733688005785,0.04627303,100180.0,100170.0,0.92953827]
[1733688006894,0.00137403,100180.0,100170.0,0.93053827]
[1733688007279,0.00137403,100180.0,100170.0,0.96123827]
[1733688007583,0.00137403,100180.0,100170.0,0.96423827]
[1733688007883,0.00137403,100180.0,100170.0,0.96123827]
[1733688008079,0.00137403,100180.0,100170.0,0.96823827]
[1733688008280,0.17415564,100190.0,100180.0,0.044898]
[1733688008475,0.16415564,100190.0,100180.0,0.405698]
[1733688008681,0.16415564,100190.0,100180.0,0.405738]
[1733688008882,0.16415564,100190.0,100180.0,0.5055633]
[1733688009779,0.04502538,100190.0,100180.0,0.5055633]
[1733688009979,0.12913026,100200.0,100180.0,0.8055633]
[1733688010176,0.17402126,100200.0,100190.0,0.405694]
[1733688010378,0.16402126,100200.0,100190.0,0.405734]
[1733688010580,0.11913026,100200.0,100190.0,0.405734]
[1733688010879,0.32320652,100210.0,100200.0,0.044889]
[1733688011182,0.16401726,100210.0,100200.0,0.468289]
[1733688011687,0.16401726,100210.0,100200.0,0.56809437]
[1733688011882,0.16401726,100210.0,100200.0,0.56813437]
[1733688012383,0.044887,100210.0,100200.0,0.56813437]
[1733688013183,0.051887,100210.0,100200.0,0.56913437]
[1733688014185,0.059867,100210.0,100200.0,0.56913437]
[1733688014576,0.13109082,100210.0,100200.0,0.56913437]
[1733688014783,0.13907082,100210.0,100200.0,0.56913437]
[1733688015687,0.14904082,100210.0,100200.0,0.56913437]
[1733688016075,0.15602082,100210.0,100200.0,0.56913437]
[1733688016277,0.25082082,100210.0,100200.0,0.13234537]
[1733688016477,0.25082082,100210.0,100200.0,0.46164537]
[1733688016478,0.28122082,100210.0,100200.0,0.46164537]
[1733688016683,0.28122082,100210.0,100200.0,0.00104]
[1733688016881,0.28122082,100210.0,100200.0,0.36184]
[1733688016882,0.43225108,100210.0,100200.0,0.36184]
[1733688017691,0.43225108,100210.0,100200.0,0.00104]
[1733688017885,0.044889,100200.0,100190.0,0.37091249]
[1733688018181,0.044969,100200.0,100190.0,0.0999079]
[1733688018586,0.04634282,100200.0,100190.0,0.0999079]
[1733688018976,0.04634282,100200.0,100190.0,0.00011249]
[1733688019177,0.16547308,100200.0,100190.0,0.00011249]
[1733688019582,0.12258408,100200.0,100190.0,0.46071786]
[1733688019778,0.00345382,100200.0,100190.0,0.50561186]
[1733688019980,0.00345382,100200.0,100190.0,0.83771186]
[1733688020584,0.00482764,100200.0,100190.0,0.53771186]
[1733688020790,0.00482764,100200.0,100190.0,0.53871186]
[1733688020791,0.00982764,100200.0,100190.0,0.53871186]
[1733688022489,0.00482764,100200.0,100190.0,0.53771186]
[1733688023285,0.00482764,100200.0,100190.0,0.55196963]
[1733688024592,0.00482764,100200.0,100190.0,0.55186963]
[1733688024993,0.04971664,100200.0,100190.0,0.51986963]
[1733688025287,0.04971664,100200.0,100190.0,0.50561186]
[1733688025988,0.08071664,100200.0,100190.0,0.50561186]
[1733688026383,0.08071664,100200.0,100190.0,0.46071786]
[1733688026786,0.08164017,100200.0,100190.0,0.46071786]
[1733688026987,0.17081929,100200.0,100190.0,0.46071786]
[1733688028385,0.28994955,100200.0,100190.0,0.46071786]
[1733688029080,0.29558043,100200.0,100190.0,0.09980537]
[1733688029280,0.80556969,100200.0,100190.0,0.09980537]
[1733688029480,0.80556969,100200.0,100180.0,0.3708]
[1733688029481,0.044894,100190.0,100180.0,0.3708]
[1733688029685,0.13801579,100190.0,100180.0,0.3608]
[1733688029886,0.13809579,100190.0,100180.0,0.46060537]
[1733688030287,0.31696469,100190.0,100180.0,0.46060537]
[1733688030699,0.31696469,100190.0,100180.0,0.46260537]
[1733688032188,0.38682469,100190.0,100180.0,0.46260537]
[1733688032495,0.29839443,100190.0,100180.0,0.46260537]
[1733688032884,0.30537443,100190.0,100180.0,0.46260537]
[1733688035091,0.31335443,100190.0,100180.0,0.46260537]
[1733688035392,0.50036149,100190.0,100180.0,0.10180537]
[1733688035597,0.35117223,100190.0,100180.0,0.10180537]
[1733688036689,0.35117223,100190.0,100180.0,0.002]
[1733688036895,0.35117223,100190.0,100170.0,0.3708]
[1733688036896,0.044898,100180.0,100170.0,0.3708]
[1733688037089,0.22651636,100180.0,100170.0,0.3608]
[1733688037286,0.19675409,100180.0,100170.0,0.09981534]
[1733688037595,0.044903,100170.0,100160.0,0.37233721]
[1733688037794,0.28985561,100170.0,100160.0,0.36233721]
[1733688038097,0.28993561,100170.0,100160.0,0.0998653]
[1733688038594,0.21039499,100170.0,100160.0,0.0998653]
[1733688038799,0.29988717,100170.0,100160.0,0.0998653]
[1733688039096,0.29988717,100170.0,100160.0,0.4606653]
[1733688040198,0.29988717,100170.0,100160.0,0.4626653]
[1733688040398,0.18052635,100170.0,100160.0,0.4626653]
[1733688040797,0.30188717,100170.0,100160.0,0.4606653]
[1733688041401,0.18252635,100170.0,100160.0,0.4606653]
[1733688043594,0.18252635,100170.0,100160.0,0.0998653]
[1733688043809,0.18252635,100170.0,100160.0,0.4606653]
[1733688045403,0.21239499,100170.0,100160.0,0.4606653]
[1733688045804,0.30178053,100170.0,100160.0,0.4606653]
[1733688047807,0.31178053,100170.0,100160.0,0.4606653]
[1733688048006,0.22239499,100170.0,100160.0,0.4606653]
[1733688048393,0.31177129,100170.0,100160.0,0.4606653]
[1733688049205,0.74039335,100170.0,100160.0,4e-05]
[1733688049506,0.80005959,100170.0,100160.0,4e-05]
[1733688049908,0.044907,100160.0,100150.0,0.01]
[1733688050106,0.7146896,100160.0,100140.0,0.40381]
[1733688050308,0.16738587,100150.0,100140.0,0.39381]
[1733688050602,0.16746587,100150.0,100140.0,0.49364527]
[1733688050807,0.17113704,100150.0,100140.0,0.49364527]
[1733688051210,0.17113704,100150.0,100140.0,0.46274527]
[1733688051404,0.20233704,100150.0,100140.0,0.46274527]
[1733688052120,0.21231704,100150.0,100140.0,0.46063527]
[1733688052411,0.12394317,100150.0,100140.0,0.51455127]
[1733688053019,0.12394317,100150.0,100140.0,0.46963527]
[1733688053606,0.13192317,100150.0,100140.0,0.46963527]
[1733688053813,0.22129704,100150.0,100140.0,0.46963527]
[1733688054210,0.22129704,100150.0,100140.0,0.3698]
[1733688055510,0.19009704,100150.0,100140.0,0.4696552]
[1733688055710,0.28494704,100150.0,100140.0,0.4696552]
[1733688056812,0.29192704,100150.0,100140.0,0.4696552]
[1733688058106,0.29192704,100150.0,100140.0,0.5145712]
[1733688058915,0.36181704,100150.0,100140.0,0.5145712]
[1733688060312,0.48098128,100150.0,100140.0,0.5145712]
[1733688061520,0.48098128,100150.0,100140.0,0.4696552]
[1733688062217,0.48098128,100150.0,100140.0,0.1088552]
[1733688062410,0.48098128,100150.0,100140.0,0.5145712]
[1733688064319,0.39160741,100150.0,100140.0,0.5145712]
[1733688065422,0.39160741,100150.0,100140.0,0.69144233]
[1733688065825,0.39160741,100150.0,100140.0,0.5145712]
[1733688066213,0.39958741,100150.0,100140.0,0.5145712]
[1733688067317,0.39958741,100150.0,100140.0,0.69144233]
[1733688067917,0.39958741,100150.0,100140.0,0.64652633]
[1733688068117,0.54880577,100150.0,100140.0,0.4696552]
[1733688068313,0.54880577,100150.0,100140.0,0.1088552]
[1733688068514,0.39958741,100150.0,100140.0,0.28572633]
[1733688068829,0.54880577,100150.0,100140.0,0.64652633]
[1733688069923,0.42964153,100150.0,100140.0,0.3698]
[1733688070126,0.43964153,100150.0,100140.0,0.3698]
[1733688070725,0.29042317,100150.0,100140.0,0.009]
[1733688071722,0.80071707,100150.0,100140.0,0.009]
[1733688072024,0.83061585,100150.0,100140.0,0.009]
[1733688072228,1.13061585,100150.0,100140.0,0.009]
[1733688072440,0.044916,100140.0,100130.0,0.3708]
[1733688072614,0.044916,100140.0,100130.0,0.75794784]
[1733688072615,0.117316,100140.0,100130.0,0.75794784]
[1733688072820,0.12098717,100140.0,100130.0,0.75794784]
[1733688073021,0.464852,100150.0,100130.0,1.05357935]
[1733688073223,0.834772,100150.0,100140.0,0.41392668]
[1733688073422,0.824772,100150.0,100140.0,0.41396668]
[1733688073622,0.70411111,100150.0,100140.0,4e-05]
[1733688074226,0.71309111,100150.0,100140.0,4e-05]
[1733688074525,0.81592111,100150.0,100140.0,4e-05]
[1733688074728,0.706472,100150.0,100140.0,4e-05]
[1733688075227,1.006472,100150.0,100140.0,4e-05]
[1733688075432,1.007472,100150.0,100140.0,0.00704]
[1733688075735,0.044916,100140.0,100130.0,0.00347593]
[1733688076030,0.82534478,100140.0,100130.0,0.00347593]
[1733688076216,0.6996914,100140.0,100130.0,0.00347593]
[1733688076534,0.9996914,100140.0,100130.0,0.00347593]
[1733688076922,0.790516,100140.0,100130.0,0.00347593]
[1733688078735,0.9996914,100140.0,100130.0,0.00347593]
[1733688079228,1.23881022,100140.0,100130.0,0.00347593]
[1733688079530,0.9996914,100140.0,100130.0,0.00347593]
[1733688080637,0.7066814,100140.0,100130.0,0.00347593]
[1733688081025,0.72015594,100140.0,100130.0,0.00347593]
[1733688081720,0.51098054,100140.0,100130.0,0.00347593]
[1733688083525,0.72015594,100140.0,100130.0,0.00347593]
[1733688085633,0.51098054,100140.0,100130.0,0.00347593]
[1733688086339,0.68995106,100140.0,100130.0,0.00347593]
[1733688089029,0.40924454,100140.0,100130.0,0.04839693]
[1733688089229,0.11930893,100140.0,100130.0,0.50906211]
[1733688089434,0.15917893,100150.0,100140.0,0.044916]
[1733688089743,0.00177,100150.0,100140.0,0.405756]
[1733688089937,0.00798,100150.0,100140.0,0.72577222]
[1733688090132,0.01010944,100160.0,100140.0,0.98300835]
[1733688090338,0.005,100180.0,100170.0,0.044903]
[1733688090537,0.09099866,100190.0,100170.0,0.766503]
[1733688090837,0.09099866,100190.0,100180.0,0.36084]
[1733688091039,0.09897866,100190.0,100180.0,0.405738]
[1733688091431,0.09951866,100190.0,100180.0,0.40583069]
[1733688091643,0.11339866,100190.0,100180.0,0.50565599]
[1733688091938,0.14591866,100190.0,100180.0,0.00013269]
[1733688092536,0.13591866,100190.0,100180.0,0.00013269]
[1733688092843,0.13591866,100190.0,100180.0,0.36093269]
[1733688093039,0.13491866,100190.0,100180.0,0.00013269]
[1733688093239,0.14391866,100190.0,100180.0,0.00113269]
[1733688097642,0.32290131,100190.0,100180.0,0.00113269]
[1733688098242,0.14391866,100190.0,100180.0,0.00113269]
[1733688100445,0.15391866,100190.0,100180.0,0.00113269]
[1733688102050,0.33290131,100190.0,100180.0,0.00113269]
[1733688103236,0.33290131,100190.0,100180.0,0.0001358]
[1733688103440,0.69370131,100190.0,100180.0,0.0001358]
[1733688105449,0.69370131,100190.0,100170.0,0.3708]
[1733688105649,0.077898,100180.0,100170.0,0.3608]
[1733688105855,0.448778,100180.0,100160.0,0.3708]
[1733688106043,0.044903,100170.0,100160.0,0.3608]
[1733688106347,0.044983,100170.0,100160.0,0.3608]
[1733688107443,0.046983,100170.0,100160.0,0.3608]
[1733688108741,0.078283,100170.0,100160.0,0.3608]
[1733688108946,0.076283,100170.0,100160.0,0.3608]
[1733688109147,0.078283,100170.0,100160.0,0.3608]
[1733688111360,0.08907302,100170.0,100160.0,0.3608]
[1733688112656,0.09907302,100170.0,100160.0,0.3608]
[1733688112850,0.09907302,100170.0,100150.0,0.417108]
[1733688112851,0.05417002,100170.0,100150.0,0.417108]
[1733688113147,0.044907,100160.0,100150.0,0.50554327]
[1733688113751,0.044987,100160.0,100150.0,0.50554327]
[1733688114650,0.059097,100160.0,100150.0,0.50554327]
[1733688115353,0.059097,100160.0,100150.0,0.50854327]
[1733688115861,0.059097,100160.0,100150.0,0.50554327]
[1733688116058,0.059097,100160.0,100150.0,0.50854327]
[1733688116950,0.092097,100160.0,100150.0,0.50854327]
[1733688117557,0.100077,100160.0,100150.0,0.50854327]
[1733688119255,0.24940952,100160.0,100150.0,0.50854327]
[1733688120158,0.28105965,100160.0,100150.0,0.50554327]
[1733688120358,0.29390965,100160.0,100150.0,0.50554327]
[1733688120761,0.30188965,100160.0,100150.0,0.50554327]
[1733688121368,0.22398265,100160.0,100150.0,0.80554327]
[1733688121658,0.19444522,100160.0,100150.0,0.82537496]
[1733688121863,0.19234522,100160.0,100150.0,0.82837496]
[1733688122854,0.0429,100160.0,100150.0,1.00277211]
[1733688123062,0.04336,100160.0,100150.0,1.00577211]
[1733688123866,0.04336,100160.0,100150.0,1.00587211]
[1733688126167,0.02927,100160.0,100150.0,1.39203891]
[1733688126459,0.18898265,100180.0,100170.0,0.044903]
[1733688126460,0.15944522,100180.0,100170.0,0.044903]
[1733688126663,0.14944522,100180.0,100170.0,1.08633469]
[1733688126864,0.14944522,100180.0,100170.0,1.08637469]
[1733688127060,0.18909967,100200.0,100180.0,0.044898]
[1733688127267,0.17909967,100200.0,100190.0,0.7216]
[1733688127466,0.17909967,100200.0,100190.0,0.72164]
[1733688127672,0.17909967,100200.0,100190.0,0.8663593]
[1733688127854,0.00011702,100200.0,100190.0,1.1663593]
[1733688128061,0.06096602,100200.0,100190.0,0.4606653]
[1733688128363,0.06096602,100200.0,100190.0,0.36084]
[1733688128562,0.06096602,100200.0,100190.0,0.46064537]
[1733688128870,0.23994867,100200.0,100190.0,0.46064537]
[1733688129070,0.23994867,100200.0,100190.0,0.36084]
[1733688130262,0.24194867,100200.0,100190.0,0.36084]
[1733688130667,0.23994867,100200.0,100190.0,0.36084]
[1733688130876,0.61850783,100200.0,100190.0,0.001]
[1733688131367,0.61850783,100200.0,100180.0,0.01]
[1733688131368,0.044894,100190.0,100180.0,0.01]
[1733688131666,0.044898,100180.0,100170.0,0.01]
[1733688131868,0.075498,100180.0,100160.0,0.41720438]
[1733688132067,0.075578,100180.0,100170.0,0.09981534]
[1733688132262,0.075578,100180.0,100160.0,0.41720438]
[1733688132263,0.075498,100180.0,100160.0,0.41720438]
[1733688132468,0.075498,100180.0,100160.0,0.40720438]
[1733688133170,0.075498,100180.0,100160.0,0.50703466]
[1733688133367,0.075498,100180.0,100170.0,0.002]
[1733688133880,0.075498,100180.0,100160.0,0.41720438]
[1733688134074,0.076498,100180.0,100170.0,0.0998253]
[1733688134264,0.076498,100180.0,100160.0,0.42364438]
[1733688134465,0.076498,100180.0,100170.0,0.0998253]
[1733688134865,0.076498,100180.0,100160.0,0.42368438]
[1733688135160,0.30410256,100180.0,100170.0,0.0998253]
[1733688135471,0.25556864,100180.0,100160.0,0.42360138]
[1733688135671,0.25556864,100180.0,100170.0,0.0998253]
[1733688135970,0.25456864,100180.0,100170.0,0.002]
[1733688136377,0.25456864,100180.0,100170.0,0.10183028]
[1733688136575,0.25556864,100180.0,100170.0,0.09983028]
[1733688137076,0.25456864,100180.0,100170.0,0.09983028]
[1733688137267,0.25656864,100180.0,100170.0,0.09983028]
[1733688139075,0.22596864,100180.0,100170.0,0.09983028]
[1733688139269,0.18107064,100180.0,100170.0,0.50553328]
[1733688139474,0.002,100180.0,100170.0,0.50553328]
[1733688139985,0.002,100180.0,100170.0,0.53563328]
[1733688140172,0.22396564,100190.0,100180.0,0.044898]
[1733688140365,0.22396564,100190.0,100180.0,0.405698]
[1733688140575,0.22396564,100190.0,100180.0,0.405738]
[1733688140765,0.22396564,100190.0,100180.0,0.5055633]
[1733688142278,0.22596564,100190.0,100180.0,0.5055633]
[1733688142476,0.22596564,100190.0,100180.0,0.4606653]
[1733688142477,0.046895,100190.0,100180.0,0.4606653]
[1733688142675,0.078095,100190.0,100180.0,0.4606653]
[1733688142876,0.078095,100190.0,100180.0,0.5055633]
[1733688143070,0.078095,100190.0,100180.0,0.4606653]
[1733688143873,0.044898,100180.0,100170.0,0.01]
[1733688144177,0.044903,100170.0,100160.0,0.01]
[1733688144477,0.044983,100170.0,100160.0,0.09981534]
[1733688144872,0.405783,100170.0,100160.0,0.09981534]
[1733688145076,0.58486718,100170.0,100160.0,0.09981534]
[1733688145475,0.58586718,100170.0,100160.0,0.10381534]
[1733688145873,0.59384718,100170.0,100160.0,0.10381534]
[1733688146080,0.60384718,100170.0,100160.0,0.10381534]
[1733688146581,0.60884718,100170.0,100160.0,0.09981534]
[1733688146879,0.044907,100160.0,100150.0,0.01]
[1733688147069,0.044912,100150.0,100140.0,0.01214]
[1733688147271,0.044912,100150.0,100140.0,0.36294]
[1733688147479,0.044992,100150.0,100140.0,0.14689127]
[1733688147873,0.044992,100150.0,100140.0,0.50769127]
[1733688148472,0.044992,100150.0,100140.0,0.50969127]
[1733688149284,0.16435293,100150.0,100140.0,0.50969127]
[1733688149975,8e-05,100150.0,100140.0,0.80969127]
[1733688150180,8e-05,100150.0,100140.0,0.84299127]
[1733688150376,8e-05,100150.0,100140.0,0.54299127]
[1733688150578,8e-05,100150.0,100140.0,0.84299127]
[1733688151184,8e-05,100150.0,100140.0,0.86269776]
[1733688151687,0.13734093,100170.0,100160.0,0.044907]
[1733688151986,0.13734093,100170.0,100160.0,0.766547]
[1733688151987,0.00798,100170.0,100160.0,0.766547]
[1733688152376,0.00798,100170.0,100160.0,0.8664022]
[1733688152687,0.01596,100170.0,100160.0,1.1664022]
[1733688153077,0.02196,100170.0,100160.0,1.18585373]
[1733688153275,0.11936093,100180.0,100170.0,0.044903]
[1733688153482,0.05500802,100200.0,100190.0,0.044894]
[1733688153680,0.04500802,100200.0,100190.0,0.405694]
[1733688153880,0.04500802,100200.0,100190.0,0.50556927]
[1733688154978,0.06096802,100200.0,100190.0,0.50556927]
[1733688155581,0.1892021,100200.0,100190.0,0.50656927]
[1733688156175,0.14431108,100200.0,100190.0,0.86736927]
[1733688156582,0.02507702,100200.0,100190.0,0.86736927]
[1733688164595,0.02507702,100200.0,100190.0,0.87851154]
[1733688170897,0.02507702,100200.0,100190.0,0.51771154]
[1733688170898,0.06996702,100200.0,100190.0,0.51771154]
[1733688171992,0.06996702,100200.0,100190.0,0.50656927]
[1733688172188,0.10316702,100200.0,100190.0,0.50656927]
[1733688172490,0.22240108,100200.0,100190.0,0.50656927]
[1733688174898,0.37139358,100200.0,100190.0,0.50656927]
[1733688177699,0.25215952,100200.0,100190.0,0.50656927]
[1733688178490,0.4310415,100200.0,100190.0,0.50656927]
[1733688179092,0.282049,100200.0,100190.0,0.50656927]
[1733688179292,0.43106747,100200.0,100190.0,0.50656927]
[1733688179500,0.282049,100200.0,100190.0,0.50656927]
[1733688180290,0.25235003,100200.0,100190.0,0.50656927]
[1733688180499,0.43123201,100200.0,100190.0,0.50656927]
[1733688180696,0.43123201,100200.0,100190.0,0.46167527]
[1733688181497,0.282049,100200.0,100190.0,0.46167527]
[1733688181692,0.282049,100200.0,100190.0,0.36184]
[1733688182604,0.32186266,100200.0,100190.0,0.36184]
[1733688183597,0.68266266,100200.0,100190.0,0.00104]
[1733688183997,0.95397196,100200.0,100190.0,0.00104]
[1733688184195,0.044894,100190.0,100180.0,0.01]
[1733688184496,0.044894,100190.0,100170.0,0.415701]
[1733688184497,0.044898,100180.0,100170.0,0.054901]
[1733688184801,0.404449,100180.0,100170.0,0.14470637]
[1733688185007,0.404449,100180.0,100170.0,0.50550637]
[1733688185598,0.22511936,100180.0,100170.0,0.14470637]
[1733688185804,0.404449,100180.0,100170.0,0.09980537]
[1733688186308,0.27096764,100180.0,100170.0,0.09980537]
[1733688186494,0.32150065,100180.0,100170.0,0.09980537]
[1733688186699,0.27296764,100180.0,100170.0,0.46060537]
[1733688186902,0.42230841,100180.0,100170.0,0.46060537]
[1733688187409,0.27296764,100180.0,100160.0,0.38128303]
[1733688187707,0.044907,100160.0,100150.0,0.427109]
[1733688187902,0.16435412,100160.0,100150.0,0.405709]
[1733688188202,0.16435412,100160.0,100150.0,0.5055343]
[1733688188203,0.25720843,100160.0,100150.0,0.5055343]
[1733688188501,0.25728843,100160.0,100150.0,0.4606253]
[1733688189594,0.044912,100150.0,100140.0,0.01214]
[1733688189796,0.19421343,100150.0,100140.0,0.00214]